[Event "Hungarian Championship Men 2022"]
[Site "Budapest"]
[Date "2022.12.05"]
[Round "1.1"]
[White "Berkes, Ferenc"]
[Black "Kozak, Adam"]
[Result "1/2-1/2"]
[ECO "C44"]
[WhiteElo "2643"]
[BlackElo "2538"]
[Annotator "TA"]
[PlyCount "61"]
[EventDate "2022.12.03"]
[EventType "tourn"]
[EventCountry "HUN"]
[SourceTitle "playchess.com"]
[Source "ChessBase"]
[SourceQuality "1"]
[TimeControl "40/5400+30:1800+30"]

{[%evp 17,61,0,0,0,0,0,0,0,0,0,1,0,6,6,6,7,0,0,0,0,0,0,0,0,0,0,0,0,0,0,0,0,0,0,0,0,0,0,0,0,0,0,0,0,0,0]} 1. e4 {[%emt 0:00:32]} e5 {[%emt 0:01:04]} 2. Nf3 {[%emt 0:00:16]} Nc6 {[%emt 0:00:09]} 3. d4 {[%emt 0:00:07]} exd4 {[%emt 0:00:18]} 4. Nxd4 {[%emt 0:00:07]} Nf6 {[%emt 0:00:34]} 5. Nxc6 {[%emt 0:00:48]} bxc6 {[%emt 0:01:07]} 6. Bd3 {[%emt 0:00:05]} d5 {[%emt 0:00:30]} 7. exd5 {[%emt 0:00:10]} cxd5 {[%emt 0:00:10]} 8. O-O {[%emt 0:00:25]} Be7 {[%emt 0:00:19]} 9. c4 {[%emt 0:00:07]} O-O {[%emt 0:00:30] The position is equal.} 10. cxd5 {[%emt 0:00:19] 10.Nc3 deserves study. C45: Scotch Game.} Nxd5 {[%emt 0:00:25]} 11. Qf3 {[%emt 0:00:09]} Be6 {[%emt 0:04:06]} 12. Rd1 {[%emt 0:00:41]} c6 {[%emt 0:01:44]} 13. Nc3 {[%emt 0:00:38]} Qb6 {[%emt 0:01:50]} 14. Rb1 {[%emt 0:03:22]} Rad8 {[%emt 0:04:06]} 15. h3 {[%emt 0:00:40] [#]} Nxc3 $146 {[%emt 0:02:20]} ({Predecessor:} 15... Rfe8 16. Bd2 h6 17. Be4 Bd6 18. b3 Bf8 19. Nxd5 Bxd5 20. Bxd5 cxd5 21. Rbc1 Bc5 {½-½ (39) Koronowski,H (2046)-Zholob,A (2083) LSS email 2020}) 16. bxc3 {[%emt 0:00:08]} Qa5 {[%emt 0:00:41]} (16... Qc5 {keeps more tension.} 17. c4 Qe5 18. Bb2 Qg5) 17. Qxc6 {[%emt 0:00:24]} Bf5 {[%emt 0:00:32]} 18. Qf3 {[%emt 0:00:26] [#] And now Rb5 would win.} Bxd3 {[%emt 0:00:25]} 19. Rxd3 {[%emt 0:00:07]} Qxa2 {[%emt 0:00:10]} 20. Rb7 {[%emt 0:00:34]} Bf6 {[%emt 0:00:52]} 21. Rxd8 {[%emt 0:00:11]} Rxd8 {[%emt 0:00:08]} 22. Be3 {[%emt 0:00:10]} Qa1+ {[%emt 0:00:18]} 23. Kh2 {[%emt 0:00:07]} Qxc3 {[%emt 0:00:12]} 24. Rxa7 {[%emt 0:00:13]} h6 {[%emt 0:00:46]} 25. Ra8 {[%emt 0:00:12]} Rxa8 {[%emt 0:00:53]} 26. Qxa8+ $11 {[%emt 0:00:08] KQB-KQB} Kh7 {[%emt 0:00:04]} 27. Qe4+ {[%emt 0:00:11]} g6 28. g3 {[%emt 0:00:24]} Qb3 {[%emt 0:02:25]} 29. Kg2 {[%emt 0:00:16]} h5 {[%emt 0:00:42]} 30. Qf3 {[%emt 0:00:11]} Bg7 {[%emt 0:00:16]} 31. Bf4 {[%emt 0:00:07] An interesting draw.   Weighted Error Value: White=0.00 (flawless) /Black=0.00 (flawless)} 1/2-1/2

[Event "Hungarian Championship Men 2022"]
[Site "Budapest"]
[Date "2022.12.05"]
[Round "1.2"]
[White "Fodor, Tamas Jr."]
[Black "Nagy, Gabor"]
[Result "1/2-1/2"]
[ECO "C41"]
[WhiteElo "2517"]
[BlackElo "2482"]
[Annotator "TA"]
[PlyCount "74"]
[EventDate "2022.12.03"]
[EventType "tourn"]
[EventCountry "HUN"]
[SourceTitle "playchess.com"]
[Source "ChessBase"]
[SourceQuality "1"]
[TimeControl "40/5400+30:1800+30"]

{[%evp 17,74,22,26,19,58,56,49,48,58,66,57,42,41,18,17,14,15,20,7,-2,-6,0,0,-80,-65,-71,-68,-53,-63,-50,-48,-43,-41,-41,-35,-49,-42,-45,-43,-42,-36,-67,-80,-78,-68,-70,-72,-65,-72,-75,-60,-65,-66,-69,0,-73,0,-72,0]} 1. e4 {[%emt 0:00:39]} e5 {[%emt 0:01:29]} 2. Nf3 {[%emt 0:00:05]} d6 {[%emt 0:00:52]} 3. d4 {[%emt 0:00:38]} exd4 {[%emt 0:00:11]} 4. Nxd4 {[%emt 0:00:38]} Nf6 {[%emt 0:00:22]} 5. Nc3 {[%emt 0:01:11]} Be7 {[%emt 0:00:18]} 6. Be2 {[%emt 0:03:00]} O-O {[%emt 0:00:35]} 7. O-O {[%emt 0:01:05]} Re8 {[%emt 0:03:01]} 8. f4 {[%emt 0:04:24]} Bf8 {[%emt 0:03:13]} 9. Bf3 {[%emt 0:00:28]} c6 {[%emt 0:05:10]} 10. Re1 {[%emt 0:05:31] C41: Philidor Defence.} Nbd7 {[%emt 0:05:59]} 11. Be3 {[%emt 0:02:33]} Qc7 {[%emt 0:01:35]} 12. Bf2 {[%emt 0:01:38] White is slightly better.} Nc5 {[%emt 0:07:59]} 13. h3 {[%emt 0:05:00]} a5 {[%emt 0:05:03]} 14. Qd2 {[%emt 0:01:32] [#]} Bd7 $146 {[%emt 0:06:42]} ({Predecessor:} 14... a4 15. Bh4 Nfd7 16. b4 axb3 17. axb3 Rxa1 18. Rxa1 g6 19. Bf2 Bh6 20. b4 Ne6 {½-½ (31) Shkuran,D (2386)-Sevostianov,P (2263) Lvov 2015}) 15. Bh4 {[%emt 0:07:28]} b5 {[%emt 0:07:23]} 16. e5 {[%emt 0:05:33] Against b4} dxe5 {[%emt 0:01:16]} 17. fxe5 {[%emt 0:00:22]} Rxe5 {[%emt 0:04:44]} 18. Ncxb5 {[%emt 0:12:07]} Rxe1+ {[%emt 0:03:14]} 19. Rxe1 {[%emt 0:00:14]} Qb6 {[%emt 0:00:43]} 20. Bf2 {[%emt 0:02:41]} (20. Kh1 $11 {remains equal.}) 20... Re8 {[%emt 0:04:18]} 21. Rxe8 {[%emt 0:07:50]} Bxe8 {[%emt 0:00:45]} 22. Nc3 {[%emt 0:01:33]} Qxb2 {[%emt 0:00:42]} 23. Nxc6 {[%emt 0:00:20]} Bxc6 {[%emt 0:04:08]} 24. Bxc6 {[%emt 0:00:06]} Ne6 {[%emt 0:00:13]} 25. a4 {[%emt 0:04:55]} Bb4 {[%emt 0:00:40]} 26. Nd1 {[%emt 0:00:29]} Qe5 {[%emt 0:01:09]} 27. Qe3 {[%emt 0:06:48]} Qd6 {[%emt 0:01:56][%csl LRc6,LRd1]} 28. Bf3 {[%emt 0:00:50]} Bc5 {[%emt 0:00:37]} 29. Qc3 {[%emt 0:06:04] [#]} Ne4 $1 {[%emt 0:04:06]} 30. Qxa5 {[%emt 0:07:13] aiming for Qa8+.} Nxf2 {[%emt 0:00:29]} 31. Nxf2 {[%emt 0:00:04]} Qd4 {[%emt 0:00:25]} 32. Qe1 {[%emt 0:00:04]} Qxa4 {[%emt 0:00:34]} 33. Qd2 {[%emt 0:04:58]} Qa1+ {[%emt 0:03:19]} 34. Qd1 {[%emt 0:00:08]} Qa7 {[%emt 0:01:11]} 35. Qe1 {[%emt 0:01:47]} Qa4 {[%emt 0:04:39]} 36. Qd2 $1 {[%emt 0:00:21]} Qa1+ {[%emt 0:00:10]} (36... Nd4 $5 {[%cal Ra4a1]} 37. Qc3 Qxc2 38. Qxc2 Nxc2 $17) 37. Qd1 {[%emt 0:00:18]} Qa7 {[%emt 0:02:53] Weighted Error Value: White=0.08 (flawless) /Black=0.08 (flawless)} (37... Qf6 $17) 1/2-1/2

[Event "Hungarian Championship Men 2022"]
[Site "Budapest"]
[Date "2022.12.05"]
[Round "1.3"]
[White "Papp, Gabor"]
[Black "Horvath, Adam"]
[Result "0-1"]
[ECO "E11"]
[WhiteElo "2564"]
[BlackElo "2501"]
[Annotator "TA"]
[PlyCount "72"]
[EventDate "2022.12.03"]
[EventType "tourn"]
[EventCountry "HUN"]
[SourceTitle "playchess.com"]
[Source "ChessBase"]
[SourceQuality "1"]
[TimeControl "40/5400+30:1800+30"]

{[%evp 13,72,31,31,7,0,12,33,0,33,34,29,0,0,0,0,0,0,0,0,0,0,0,0,-31,0,-24,0,23,22,-79,-87,-83,-83,-219,-133,-184,-56,-54,0,-22,36,-172,-201,-306,-301,-258,0,-220,-179,-180,-159,-152,-114,-90,-102,-672,-541,-506,-500,-943,-626]} 1. d4 {[%emt 0:00:35]} Nf6 {[%emt 0:00:42]} 2. c4 {[%emt 0:00:16]} e6 {[%emt 0:00:06]} 3. Nf3 {[%emt 0:00:22]} Bb4+ {[%emt 0:00:39]} 4. Nbd2 {[%emt 0:00:46]} b6 {[%emt 0:00:41]} 5. a3 {[%emt 0:00:31]} Bxd2+ {[%emt 0:00:07]} 6. Qxd2 {[%emt 0:00:39]} Bb7 {[%emt 0:00:34]} 7. e3 {[%emt 0:00:23]} O-O {[%emt 0:00:45]} 8. b4 {[%emt 0:00:55] E14: Queen's Indian: Classical Variation (4 e3).} a5 {[%emt 0:00:35]} 9. b5 {[%emt 0:10:53] [#]} d5 $1 $146 {[%emt 0:00:22][%mdl 8] An important novelty.} ({Predecessor:} 9... d6 10. Bb2 Nbd7 11. Be2 Ne4 12. Qc2 f5 13. O-O Qe7 14. a4 Ng5 15. Ne1 Nh3+ 16. Kh1 Qh4 17. Bf3 Bxf3 18. Nxf3 Qh5 19. c5 bxc5 20. dxc5 Nxc5 {0-1 (27) Sarana,A (2654)-Moradiabadi,E (2555) Chess.com INT 2020}) 10. a4 {[%emt 0:05:23] White is slightly better.} Ne4 {[%emt 0:16:23]} 11. Qc2 {[%emt 0:02:17]} c5 {[%emt 0:00:05]} 12. dxc5 {[%emt 0:18:21]} Nxc5 {[%emt 0:00:45]} 13. Bb2 {[%emt 0:00:07]} Nbd7 {[%emt 0:01:28]} 14. Be2 {[%emt 0:00:07]} Rc8 {[%emt 0:03:38]} 15. O-O {[%emt 0:00:14]} Qe7 {[%emt 0:06:21]} 16. Rfd1 {[%emt 0:06:40]} Rfd8 {[%emt 0:07:13]} 17. Qc3 {[%emt 0:08:23][%csl Gb2][%cal Rc3g7]} Nf6 {[%emt 0:05:22]} 18. Qa3 {[%emt 0:00:38]} Nfe4 {[%emt 0:16:44]} (18... dxc4 $5 {[%cal Rb7f3]} 19. Rd4 Nfe4 20. Bxc4 Nd6 $15) 19. Rac1 {[%emt 0:17:38]} h6 {[%emt 0:02:37]} (19... dxc4 {is more appropriate.} 20. Bxc4 Rxd1+ 21. Rxd1 h6) 20. cxd5 $11 {[%emt 0:02:05]} Bxd5 {[%emt 0:03:03]} 21. Nd4 {[%emt 0:00:05]} (21. Bd4 $11) 21... Qh4 $17 22. g3 {[%emt 0:08:29]} Qg5 {[%emt 0:25:29] Black is more active.} (22... Qh3 {seems wilder.} 23. Bf1 Qh5 24. Be2 Qg5) 23. Rf1 {[%emt 0:06:48]} (23. Nc6 $17 Bxc6 24. bxc6) 23... Qg6 {[%emt 0:02:48]} 24. Rcd1 {[%emt 0:01:36]} (24. Rfd1 $17 {was worth a try.}) 24... h5 {[%emt 0:02:10]} (24... e5 $19 25. Nc6 Bxc6 26. bxc6 Qxc6) 25. Nc6 $15 {[%emt 0:00:50]} Re8 {[%emt 0:02:01] Inhibits Ne7+.} ({Black should play} 25... Bxc6 $15 26. Rxd8+ Rxd8 27. bxc6 Rc8) 26. Ne5 {[%emt 0:00:48]} (26. f3 $5 {[%cal Rf3e4]} Bxc6 27. bxc6 Nxg3 28. hxg3 Qxg3+ 29. Kh1 $11) 26... Qh6 {[%emt 0:01:36]} (26... Qg5 $11) 27. Bd4 $2 {[%emt 0:01:53]} (27. f3 $14 Ng5 28. h4) 27... h4 $1 $19 {[%emt 0:00:32]} 28. Ng4 {[%emt 0:02:32]} (28. Bf3 {was called for.}) 28... Qg6 {[%emt 0:00:20]} 29. Ne5 {[%emt 0:01:05]} Qh6 $40 {[%emt 0:00:53][%mdl 128] Black attacks.} 30. Ng4 $1 {[%emt 0:00:04]} Qg5 {[%emt 0:00:30]} 31. Be5 {[%emt 0:00:08]} Qg6 {[%emt 0:00:54]} 32. f3 {[%emt 0:00:56] Against f5} Ng5 {[%emt 0:00:27] Hoping for ...f5. Pair of Knights!} 33. e4 {[#] Against f5} (33. gxh4 $2 Nxf3+ $1 {[%mdl 512]} 34. Rxf3 Qxg4+ 35. Rg3 Qxe2 $19) 33... Ncxe4 {[%emt 0:00:06][%cal Of7f5] aiming for ...f5!} 34. Bd3 $2 {[%emt 0:02:29][%mdl 8192] Against f5} (34. Qe3 $17 Nc5 35. gxh4 Nh3+ 36. Kh1) 34... Nh3+ {[%emt 0:00:31] Black is clearly winning.} 35. Kg2 {[%emt 0:00:29][%cal Of3e4] [#]} Qxg4 {[%emt 0:00:19]} ({Weaker is} 35... f5 36. fxe4 Ba8 37. Ne3 (37. Kxh3 $2 {perishes.} Qxg4+ 38. Kg2 hxg3 $19) 37... hxg3 38. hxg3 $16 (38. Kxh3 $2 Qh6+ 39. Kg2 Qxe3 $19)) 36. fxg4 {[%emt 0:00:29]} (36. fxe4 $142 Bb7 37. Bb1) 36... Nef2+ {[%emt 0:00:09] Weighted Error Value: White=0.61/Black=0.35} ({But not} 36... Nxg3+ 37. Kxh3 Nxf1 38. Rxf1 $18) 0-1

[Event "Hungarian Championship Men 2022"]
[Site "Budapest"]
[Date "2022.12.05"]
[Round "1.4"]
[White "Korpa, Bence"]
[Black "Horvath, Csaba"]
[Result "1-0"]
[ECO "A05"]
[WhiteElo "2500"]
[BlackElo "2502"]
[Annotator "TA"]
[PlyCount "79"]
[EventDate "2022.12.03"]
[EventType "tourn"]
[EventCountry "HUN"]
[SourceTitle "playchess.com"]
[Source "ChessBase"]
[SourceQuality "1"]
[TimeControl "40/5400+30:1800+30"]

{[%evp 9,79,38,31,50,36,49,51,39,39,17,21,0,21,0,47,62,48,56,74,79,88,81,93,77,81,92,94,11,170,166,127,141,191,213,216,204,203,196,232,139,358,347,354,353,354,343,342,345,459,230,229,229,571,571,571,571,647,638,631,630,1121,679,639,590,909,900,949,719,694,650,707,707]} 1. Nf3 {[%emt 0:00:40]} Nf6 {[%emt 0:01:38]} 2. g3 {[%emt 0:00:11]} d6 {[%emt 0:05:46]} 3. Bg2 {[%emt 0:04:57]} e5 {[%emt 0:00:29]} 4. O-O {[%emt 0:00:25]} g6 {[%emt 0:06:14]} 5. d4 {[%emt 0:06:11]} Nbd7 {[%emt 0:00:34]} 6. dxe5 {[%emt 0:09:20] A05: Réti Opening: 1 Nf3 Nf6.} dxe5 {[%emt 0:02:16]} 7. b3 {[%emt 0:00:24]} Bg7 {[%emt 0:08:57]} 8. Ba3 {[%emt 0:16:16] White is slightly better.} e4 {[%emt 0:09:24] [#]} 9. Ng5 $146 {[%emt 0:13:18][%cal Ob1c3]} ({Predecessor:} 9. Nfd2 e3 10. Nc4 Ng4 11. f3 Bxa1 12. fxg4 Nb6 13. Qc1 Nxc4 14. bxc4 Be5 15. Bd5 {0-1 (26) Martinez Rodriguez,P (2285)-Oratovsky,M (2495) Pontevedra 2015}) 9... h6 {[%emt 0:07:42]} 10. Nh3 {[%emt 0:00:09]} c5 {[%emt 0:13:47]} 11. Qd6 {[%emt 0:01:34][%cal Ob1c3]} a5 {[%emt 0:15:31]} (11... Nh5 $11 12. c3 Qb6) 12. Nc3 $36 {[%emt 0:12:17][%cal Oc3b5][%mdl 2048] Threatens to win with Nb5! White has good play.} (12. Bxc5 $2 Bf8 13. Qd2 Bxc5 $19) 12... Ra6 {[%emt 0:00:11]} 13. Qd2 {[%emt 0:00:16][%cal Oa1d1]} O-O {[%emt 0:01:51][%cal Oa5a4]} 14. Rad1 {[%emt 0:03:10][%cal Oa3c5]} Qe7 {[%emt 0:03:45][%cal Oa5a4]} 15. Nf4 {[%emt 0:01:06] Inhibits a4.} a4 {[%emt 0:04:17]} 16. b4 {[%emt 0:08:26][%cal Bb3b4,Bb4b5][%mdl 32] White is much more active.} (16. bxa4 Nb6 $11) (16. Nxa4 $2 b5 17. c4 bxa4 $19) 16... Nb6 {[%emt 0:00:20][%cal Bd7b6,Bb6c4,Bc4b2][%mdl 32]} (16... cxb4 17. Ncd5 Qd8 18. Nxf6+ (18. Qxb4 Re8 $16) (18. Nxb4 Ra7 $16) (18. Bxb4 Re8 $16) 18... Qxf6 19. Nd5 $16 (19. Bxb4 Re8 $16) (19. Qxb4 Qe5 $16)) 17. b5 {[%emt 0:05:06]} Nc4 {[%emt 0:05:16][%csl LRa3,LRd2]} 18. Ncd5 {[%emt 0:04:03]} ({White should try} 18. Qc1 $16 Ra5 19. Ncd5 Nxd5 20. Nxd5) 18... Qe5 {[%emt 0:00:52] [#]} (18... Qe8 $11 19. Qc3 Qxb5 20. Ne7+ (20. Nc7 Qa5 $15) 20... Kh7) 19. Qc3 $1 $18 {[%emt 0:01:28]} Qxc3 {[%emt 0:03:42]} 20. Nxc3 {[%emt 0:00:05]} Ra5 {[%emt 0:02:54]} (20... Nxa3 $16 21. bxa6 bxa6 22. Nxe4 (22. Bxe4 g5 $16) 22... Nxe4) 21. Bxc5 {[%emt 0:00:36]} Re8 {[%emt 0:00:01]} 22. Rd4 {[%emt 0:04:44][%csl LRc4,LRe4]} Nb2 {[%emt 0:02:38]} 23. Bb4 {[%emt 0:03:17]} ({Don't play} 23. Nxe4 $6 Nxe4 24. Rxe4 Rxe4 25. Bxe4 Rxb5 $14) 23... Ra7 {[%emt 0:01:34]} 24. Ba3 {[%emt 0:01:35]} ({But not} 24. Bxe4 $6 g5 $16) ({Better is} 24. Nxe4 $18 {aiming for Nd6.} Nxe4 25. Rxe4 Rxe4 26. Bxe4) 24... Nd7 $2 {[%emt 0:01:10]} (24... Nh5 $16) 25. Rxe4 {[%emt 0:00:10]} Rxe4 {[%emt 0:00:13]} 26. Nxe4 {[%emt 0:00:07] [#] Strongly threatening Nd6.} Nc4 {[%emt 0:00:08] Against Nd6} 27. Bb4 {[%emt 0:00:18]} Ndb6 {[%emt 0:00:46]} 28. Rd1 {[%emt 0:00:42][%cal Bf1d1,Bd1d5,Bd5d8][%mdl 32]} Bd7 {[%emt 0:00:40]} 29. Nd5 {[%emt 0:02:59]} (29. Nd6 $142 {Hoping for Nxc4.} Nxd6 30. Rxd6) 29... Nxd5 {[%emt 0:01:38]} 30. Rxd5 {[%emt 0:00:06]} Be6 {[%emt 0:00:14]} (30... b6 {is more resistant.} 31. e3 Be6 32. Rd8+ Kh7) 31. Rd8+ {[%emt 0:00:42] White is clearly winning.} Kh7 {[%emt 0:00:02]} 32. Be7 {[%emt 0:00:50] White threatens Nf6+ and mate.} g5 {[%emt 0:00:45]} 33. Nf6+ {[%emt 0:00:35]} Kg6 {[%emt 0:00:22]} 34. Rg8 {[%emt 0:00:21]} b6 {[%emt 0:00:44]} 35. Bd8 {[%emt 0:00:05]} Nd6 {[%emt 0:00:48]} 36. Bxb6 {[%emt 0:00:42]} Re7 {[%emt 0:00:08]} 37. Bd4 {[%emt 0:01:00]} Nxb5 {[%emt 0:00:37]} 38. Ba1 {[%emt 0:00:07]} Nd6 {[%emt 0:01:00]} 39. g4 {[%emt 0:00:35]} Bxa2 {[%emt 0:00:15]} 40. Nd5 {[%emt 0:00:00] Weighted Error Value: White=0.34/Black=0.46} 1-0

[Event "Hungarian Championship Men 2022"]
[Site "Budapest"]
[Date "2022.12.05"]
[Round "1.5"]
[White "Grigoriants, Sergey"]
[Black "Prohaszka, Peter"]
[Result "1/2-1/2"]
[ECO "D37"]
[WhiteElo "2550"]
[BlackElo "2562"]
[Annotator "TA"]
[PlyCount "61"]
[EventDate "2022.12.03"]
[EventType "tourn"]
[EventCountry "HUN"]
[SourceTitle "playchess.com"]
[Source "ChessBase"]
[SourceQuality "1"]
[TimeControl "40/5400+30:1800+30"]

{[%evp 20,61,14,14,22,12,39,11,87,93,68,50,76,71,89,93,95,102,125,24,56,18,22,16,15,8,14,8,12,20,32,0,0,6,0,0,12,7,13,16,29,0,57,40]} 1. c4 {[%emt 0:00:34]} e6 {[%emt 0:01:16]} 2. Nc3 {[%emt 0:00:34]} d5 {[%emt 0:00:56]} 3. d4 {[%emt 0:00:13]} Nf6 {[%emt 0:00:53]} 4. Nf3 {[%emt 0:01:36]} h6 {[%emt 0:07:21]} 5. a3 {[%emt 0:15:33]} c6 {[%emt 0:04:35]} 6. e3 {[%emt 0:06:04]} Nbd7 {[%emt 0:01:23]} 7. Bd3 {[%emt 0:02:36][%cal Bf1d3,Bd3e4,Be4c2][%mdl 32]} Bd6 {[%emt 0:06:44]} 8. e4 {[%emt 0:05:35]} dxe4 {[%emt 0:26:27]} 9. Nxe4 {[%emt 0:00:26]} Nxe4 {[%emt 0:00:05]} 10. Bxe4 {[%emt 0:00:05]} O-O {[%emt 0:02:50]} 11. O-O {[%emt 0:04:30]} e5 {[%emt 0:08:05] D46: Semi-Slav: 5 e3 Nbd7 6 Bd3, Black avoids the Meran.} 12. Bc2 {[%emt 0:04:19]} f5 {[%emt 0:04:19] [#]} (12... exd4 {looks sharper.} 13. Qxd4 Bc7 14. Bf4 Nf6) 13. c5 $146 {[%emt 0:12:14] Inhibits e4.} ({Predecessor:} 13. dxe5 Nxe5 14. Nxe5 Bxe5 15. Qh5 Qf6 16. Rb1 Be6 17. b3 Bd4 18. Qf3 Rad8 19. Be3 {½-½ (34) Castanheira,A (1905)-Kievelitz,B (1842) Sao Martinho do Porto 2018}) 13... Be7 {[%emt 0:02:33]} (13... Bb8 $11) 14. dxe5 $16 {[%emt 0:05:54] Hoping for b4.} Nxc5 {[%emt 0:00:23]} 15. Qe2 {[%emt 0:01:05]} Qe8 {[%emt 0:09:51]} 16. Nd4 {[%emt 0:05:51]} Kh8 {[%emt 0:02:54]} 17. Be3 {[%emt 0:07:33] White is more active.} Qg6 {[%emt 0:05:12]} 18. Rad1 {[%emt 0:07:08]} Ne6 {[%emt 0:08:22][%cal Bc5e6,Be6c7,Bc7d5][%mdl 32] [#]} 19. Nb3 {[%emt 0:01:45]} (19. Nxf5 $1 $16 Nf4 20. Bxf4 Bxf5 21. Bxf5 Qxf5 22. Bg3) 19... Nc7 {[%emt 0:02:24]} 20. f4 {[%emt 0:07:09]} b6 $1 {[%emt 0:00:09]} 21. Qf3 {[%emt 0:02:22]} c5 {[%emt 0:00:26] Inhibits Nd4.} 22. Nc1 {[%emt 0:00:51][%cal Bb3c1,Bc1e2,Be2g3][%mdl 32]} Rb8 {[%emt 0:00:09]} 23. Ne2 $1 {[%emt 0:00:28]} Bb7 {[%emt 0:01:02]} 24. Qh3 {[%emt 0:00:12]} Nd5 {[%emt 0:01:05]} 25. Bc1 {[%emt 0:00:37] And now Ng3 would win.} Rbd8 {[%emt 0:02:20]} 26. Ng3 {[%emt 0:01:19][%cal Rc2f5]} Bc8 {[%emt 0:00:04]} 27. Ne2 {[%emt 0:00:23]} Nc7 {[%emt 0:00:40]} 28. Nc3 {[%emt 0:01:00]} Rxd1 {[%emt 0:00:55]} 29. Rxd1 {[%emt 0:00:08]} Qc6 {[%emt 0:00:05]} 30. Be3 {[%emt 0:00:34]} Bb7 {[%emt 0:00:36]} (30... b5 $1 $11) 31. Rd2 {[%emt 0:00:31] Weighted Error Value: White=0.12 (very precise) /Black=0.14 (very precise)} (31. Bxf5 $2 {[#] is the wrong capture.} Rxf5 $1 {[%mdl 512]} 32. Rd2 Qe6 $19) 1/2-1/2